fUSD/lending_fUSD_20251225
["ID","MTS","AMOUNT","RATE_DAILY","PERIOD"]
[399785054,1766675444096,-277.27144016,0.00015545,2]
[399785055,1766675444106,-159.81844232,0.00015545,2]
[399785056,1766675444116,-206.63382846,0.00015545,2]
[399785057,1766675444125,-399.59949094,0.00015545,2]
[399785058,1766675444136,-192.8242755,0.00015545,2]
[399785059,1766675444146,-150.0,0.00015546,2]
[399785060,1766675444156,-150.0,0.00015549,2]
[399785061,1766675444166,-150.0,0.00015549,2]
[399785062,1766675444176,-649.87,0.0001555,2]
[399785063,1766675444186,-296.20815383,0.00015562,2]
[399785064,1766675444196,-277.27144016,0.00015562,2]
[399785065,1766675444206,-159.81844232,0.00015562,2]
[399785066,1766675444216,-206.63382846,0.00015562,2]
[399785067,1766675444226,-399.59949094,0.00015562,2]
[399785068,1766675444236,-192.8242755,0.00015562,2]
[399785069,1766675444247,-150.0,0.00015567,2]
[399785070,1766675444257,-150.0,0.00015571,2]
[399785071,1766675444267,-150.0,0.00015571,2]
[399785072,1766675444277,-296.20815383,0.00015579,2]
[399785073,1766675444286,-277.27144016,0.00015579,2]
[399785074,1766675444296,-159.81844232,0.00015579,2]
[399785075,1766675444306,-206.63382846,0.00015579,2]
[399785076,1766675444316,-399.59949094,0.00015579,2]
[399785077,1766675444326,-192.8242755,0.00015579,2]
[399785078,1766675444336,-150.0,0.00015582,2]
[399785079,1766675444345,-150.0,0.00015585,2]
[399785080,1766675444355,-150.0,0.00015587,2]
[399785081,1766675444365,-150.0,0.00015589,2]
[399785082,1766675444375,-296.20815383,0.00015597,2]
[399785083,1766675444384,-277.27144016,0.00015597,2]
[399785084,1766675444394,-159.81844232,0.00015597,2]
[399785085,1766675444404,-206.63382846,0.00015597,2]
[399785086,1766675444414,-399.59949094,0.00015597,2]
[399785087,1766675444424,-192.8242755,0.00015597,2]
[399785088,1766675444435,-150.0,0.0001561,2]
[399785089,1766675444444,-296.20815383,0.00015614,2]
[399785090,1766675444454,-277.27144016,0.00015614,2]
[399785091,1766675444465,-159.81844232,0.00015614,2]
[399785092,1766675444475,-206.63382846,0.00015614,2]
[399785093,1766675444490,-399.59949094,0.00015614,2]
[399785094,1766675444500,-192.8242755,0.00015614,2]
[399785095,1766675444511,-150.0,0.00015614,2]
[399785096,1766675444522,-150.0,0.00015614,2]
[399785097,1766675444532,-150.0,0.00015627,2]
[399785098,1766675444542,-296.20815383,0.00015631,2]
[399785099,1766675444552,-277.27144016,0.00015631,2]
[399785100,1766675444563,-159.81844232,0.00015631,2]
[399785101,1766675444573,-206.63382846,0.00015631,2]
[399785102,1766675444583,-399.59949094,0.00015631,2]
[399785103,1766675444593,-192.8242755,0.00015631,2]
[399785104,1766675444603,-150.0,0.00015632,2]
[399785105,1766675444614,-150.0,0.00015637,2]
[399785106,1766675444623,-150.0,0.00015647,2]
[399785107,1766675444633,-296.20815383,0.00015648,2]
[399785108,1766675444643,-277.27144016,0.00015648,2]
[399785109,1766675444654,-159.81844232,0.00015648,2]
[399785110,1766675444664,-206.63382846,0.00015648,2]
[399785111,1766675444675,-399.59949094,0.00015648,2]
[399785112,1766675444684,-192.8242755,0.00015648,2]
[399785113,1766675444694,-150.0,0.00015653,2]
[399785114,1766675444707,-296.20815383,0.00015665,2]
[399785115,1766675444718,-277.27144016,0.00015665,2]
[399785116,1766675444728,-159.81844232,0.00015665,2]
[399785117,1766675444738,-206.63382846,0.00015665,2]
[399785118,1766675444750,-399.59949094,0.00015665,2]
[399785119,1766675444761,-192.8242755,0.00015665,2]
[399785120,1766675444771,-150.0,0.0001567,2]
[399785121,1766675444781,-150.0,0.00015675,2]
[399785122,1766675444793,-150.0,0.0001568,2]
[399785123,1766675444804,-150.0,0.0001568,2]
[399785124,1766675444814,-296.20815383,0.00015682,2]
[399785125,1766675444824,-277.27144016,0.00015682,2]
[399785126,1766675444836,-159.81844232,0.00015682,2]
[399785127,1766675444851,-206.63382846,0.00015682,2]
[399785128,1766675444862,-399.59949094,0.00015682,2]
[399785129,1766675444873,-192.8242755,0.00015682,2]
[399785130,1766675444883,-150.0,0.00015687,2]
[399785131,1766675444895,-150.0,0.00015696,2]
[399785132,1766675444906,-296.20815383,0.00015699,2]
[399785133,1766675444918,-277.27144016,0.00015699,2]
[399785134,1766675444929,-159.81844232,0.00015699,2]
[399785135,1766675444939,-206.63382846,0.00015699,2]
[399785136,1766675444950,-399.59949094,0.00015699,2]
[399785137,1766675444960,-192.8242755,0.00015699,2]
[399785138,1766675444971,-150.0,0.00015712,2]
[399785139,1766675444981,-150.0,0.00015712,2]
[399785140,1766675444991,-150.0,0.00015712,2]
[399785141,1766675445003,-150.0,0.00015712,2]
[399785142,1766675445014,-296.20815383,0.00015717,2]
[399785143,1766675445024,-277.27144016,0.00015717,2]
[399785144,1766675445034,-159.81844232,0.00015717,2]
[399785145,1766675445045,-206.63382846,0.00015717,2]
[399785146,1766675445055,-399.59949094,0.00015717,2]
[399785147,1766675445065,-192.8242755,0.00015717,2]
[399785148,1766675445075,-150.0,0.00015718,2]
[399785149,1766675445085,-236.57,0.00015722,2]
[399785150,1766675445096,-296.20815383,0.00015734,2]
[399785151,1766675445106,-277.27144016,0.00015734,2]
[399785152,1766675445117,-159.81844232,0.00015734,2]
[399785153,1766675445128,-206.63382846,0.00015734,2]
[399785154,1766675445138,-399.59949094,0.00015734,2]
[399785155,1766675445147,-192.8242755,0.00015734,2]
[399785156,1766675445158,-150.0,0.00015737,2]
[399785157,1766675445169,-150.0,0.00015739,2]
[399785158,1766675445179,-150.0,0.00015745,2]
[399785159,1766675445190,-150.0,0.00015745,2]
[399785160,1766675445200,-161.35,0.00015747,2]
[399785161,1766675445210,-296.20815383,0.00015751,2]
[399785162,1766675445225,-277.27144016,0.00015751,2]
[399785163,1766675445234,-159.81844232,0.00015751,2]
[399785164,1766675445244,-206.63382846,0.00015751,2]
[399785165,1766675445254,-399.59949094,0.00015751,2]
[399785166,1766675445265,-192.8242755,0.00015751,2]
[399785167,1766675445276,-150.0,0.00015755,2]
[399785168,1766675445287,-150.0,0.00015761,2]
[399785169,1766675445296,-296.20815383,0.00015768,2]
[399785170,1766675445306,-277.27144016,0.00015768,2]
[399785171,1766675445316,-159.81844232,0.00015768,2]
[399785172,1766675445326,-206.63382846,0.00015768,2]
[399785173,1766675445336,-399.59949094,0.00015768,2]
[399785174,1766675445347,-192.8242755,0.00015768,2]
[399785175,1766675445357,-150.0,0.00015778,2]
[399785176,1766675445368,-150.0,0.00015782,2]
[399785177,1766675445378,-296.20815383,0.00015785,2]
[399785178,1766675445387,-277.27144016,0.00015785,2]
[399785179,1766675445399,-159.81844232,0.00015785,2]
[399785180,1766675445409,-206.63382846,0.00015785,2]
[399785181,1766675445420,-399.59949094,0.00015785,2]
[399785182,1766675445430,-192.8242755,0.00015785,2]
[399785183,1766675445440,-150.0,0.00015787,2]
[399785184,1766675445451,-150.0,0.00015797,2]
[399785185,1766675445461,-214.20136534,0.00015799,2]
[399785186,1766675445472,-5315.72073937,0.00015799,2]
[399785187,1766675445483,-8120.72127121,0.00015799,2]
[399785188,1766675445493,-296.20815383,0.00015802,2]
[399785189,1766675445503,-277.27144016,0.00015802,2]
[399785190,1766675445514,-159.81844232,0.00015802,2]
[399785191,1766675445524,-206.63382846,0.00015802,2]
[399785192,1766675445535,-399.59949094,0.00015802,2]
[399785193,1766675445545,-192.8242755,0.00015802,2]
[399785194,1766675445555,-150.0,0.00015804,2]
[399785195,1766675445564,-150.0,0.0001581,2]
[399785196,1766675445573,-150.0,0.0001581,2]
[399785197,1766675445584,-296.20815383,0.0001582,2]
[399785198,1766675445594,-277.27144016,0.0001582,2]
[399785199,1766675445604,-159.81844232,0.0001582,2]
[399785200,1766675445615,-206.63382846,0.0001582,2]
[399785201,1766675445625,-399.59949094,0.0001582,2]
[399785202,1766675445635,-192.8242755,0.0001582,2]
[399785203,1766675445645,-150.0,0.00015825,2]
[399785204,1766675445656,-296.20815383,0.00015837,2]
[399785205,1766675445666,-277.27144016,0.00015837,2]
[399785206,1766675445677,-159.81844232,0.00015837,2]
[399785207,1766675445688,-206.63382846,0.00015837,2]
[399785208,1766675445698,-399.59949094,0.00015837,2]
[399785209,1766675445713,-192.8242755,0.00015837,2]
[399785210,1766675445722,-150.0,0.00015837,2]
[399785211,1766675445733,-150.0,0.0001584,2]
[399785212,1766675445743,-150.0,0.00015843,2]
[399785213,1766675445754,-432.0,0.00015846,2]
[399785214,1766675445765,-150.0,0.00015847,2]
[399785215,1766675445776,-232.6,0.00015849,2]
[399785216,1766675445788,-296.20815383,0.00015854,2]
[399785217,1766675445799,-277.27144016,0.00015854,2]
[399785218,1766675445810,-159.81844232,0.00015854,2]
[399785219,1766675445821,-206.63382846,0.00015854,2]
[399785220,1766675445832,-399.59949094,0.00015854,2]
[399785221,1766675445842,-192.8242755,0.00015854,2]
[399785222,1766675445852,-150.0,0.00015854,2]
[399785223,1766675445863,-150.0,0.00015854,2]
[399785224,1766675445874,-150.0,0.00015868,2]
[399785225,1766675445885,-296.20815383,0.00015871,2]
[399785226,1766675445896,-277.27144016,0.00015871,2]
[399785227,1766675445907,-159.81844232,0.00015871,2]
[399785228,1766675445919,-206.63382846,0.00015871,2]
[399785229,1766675445930,-399.59949094,0.00015871,2]
[399785230,1766675446148,-192.8242755,0.00015871,2]
[399785231,1766675446160,-150.0,0.00015876,2]
[399785232,1766675446171,-150.0,0.00015876,2]
[399785233,1766675446182,-595.37131296,0.00015882,2]
[399785234,1766675446192,-150.0,0.00015882,2]
[399785235,1766675446202,-150.0,0.00015887,2]
[399785236,1766675446212,-296.20815383,0.00015888,2]
[399785237,1766675446222,-277.27144016,0.00015888,2]
[399785238,1766675446233,-159.81844232,0.00015888,2]
[399785239,1766675446243,-206.63382846,0.00015888,2]
[399785241,1766675446253,-399.59949094,0.00015888,2]
[399785243,1766675446262,-192.8242755,0.00015888,2]
[399785245,1766675446272,-150.0,0.0001589,2]
[399785246,1766675446282,-296.20815383,0.00015905,2]
[399785247,1766675446292,-277.27144016,0.00015905,2]
[399785248,1766675446303,-159.81844232,0.00015905,2]
[399785249,1766675446313,-206.63382846,0.00015905,2]
[399785250,1766675446323,-399.59949094,0.00015905,2]
[399785251,1766675446333,-192.8242755,0.00015905,2]
[399785252,1766675446343,-150.0,0.00015908,2]
[399785253,1766675446352,-150.0,0.00015911,2]
[399785254,1766675446362,-613.68490474,0.00015912,2]
[399785255,1766675446371,-296.20815383,0.00015923,2]
[399785256,1766675446381,-277.27144016,0.00015923,2]
[399785257,1766675446391,-159.81844232,0.00015923,2]
[399785258,1766675446402,-206.63382846,0.00015923,2]
[399785259,1766675446411,-399.59949094,0.00015923,2]
[399785260,1766675446421,-192.8242755,0.00015923,2]
[399785261,1766675446431,-150.0,0.00015925,2]
[399785262,1766675446442,-150.0,0.00015925,2]
[399785263,1766675446452,-150.0,0.00015933,2]
[399785264,1766675446463,-150.0,0.00015937,2]
[399785265,1766675446473,-296.20815383,0.0001594,2]
[399785266,1766675446483,-277.27144016,0.0001594,2]
[399785267,1766675446493,-159.81844232,0.0001594,2]
[399785268,1766675446503,-206.63382846,0.0001594,2]
[399785269,1766675446513,-399.59949094,0.0001594,2]
[399785270,1766675446524,-192.8242755,0.0001594,2]
[399785271,1766675446534,-150.0,0.00015941,2]
[399785272,1766675446545,-150.0,0.00015941,2]
[399785273,1766675446555,-150.0,0.00015954,2]
[399785274,1766675446566,-296.20815383,0.00015957,2]
[399785275,1766675446576,-277.27144016,0.00015957,2]
[399785276,1766675446586,-159.81844232,0.00015957,2]
[399785277,1766675446596,-206.63382846,0.00015957,2]
[399785278,1766675446605,-399.59949094,0.00015957,2]
[399785279,1766675446614,-192.8242755,0.00015957,2]
[399785280,1766675446625,-150.0,0.00015967,2]
[399785281,1766675446635,-236.57,0.00015968,2]
[399785282,1766675446645,-150.0,0.00015974,2]
[399785283,1766675446655,-296.20815383,0.00015974,2]
[399785284,1766675446665,-277.27144016,0.00015974,2]
[399785285,1766675446675,-159.81844232,0.00015974,2]
[399785286,1766675446685,-206.63382846,0.00015974,2]
[399785287,1766675446696,-399.59949094,0.00015974,2]
[399785288,1766675446708,-192.8242755,0.00015974,2]
[399785289,1766675446719,-150.0,0.00015976,2]
[399785290,1766675446729,-150.0,0.00015987,2]
[399785291,1766675446740,-296.20815383,0.00015991,2]
[399785292,1766675446751,-277.27144016,0.00015991,2]
[399785293,1766675446762,-159.81844232,0.00015991,2]
[399785294,1766675446773,-206.63382846,0.00015991,2]
[399785295,1766675446785,-399.59949094,0.00015991,2]
[399785296,1766675446796,-192.8242755,0.00015991,2]
[399785297,1766675446806,-150.0,0.00015995,2]
[399785298,1766675446816,-150.0,0.00015997,2]
[399785299,1766675446826,-150.0,0.00016006,2]
[399785300,1766675446836,-150.0,0.00016006,2]
[399785301,1766675446846,-296.20815383,0.00016008,2]
[399785302,1766675446857,-277.27144016,0.00016008,2]
[399785303,1766675446867,-159.81844232,0.00016008,2]
[399785304,1766675446878,-206.63382846,0.00016008,2]
[399785305,1766675446888,-399.59949094,0.00016008,2]
[399785306,1766675446899,-192.8242755,0.00016008,2]
[399785307,1766675446910,-150.0,0.0001601,2]
[399785308,1766675446920,-150.0,0.00016019,2]
[399785309,1766675446930,-296.20815383,0.00016025,2]
[399785310,1766675446940,-277.27144016,0.00016025,2]
[399785311,1766675446950,-159.81844232,0.00016025,2]
[399785312,1766675446961,-206.63382846,0.00016025,2]
[399785313,1766675446972,-399.59949094,0.00016025,2]
[399785314,1766675446982,-192.8242755,0.00016025,2]
[399785315,1766675446992,-150.0,0.00016037,2]
[399785316,1766675447003,-150.0,0.00016039,2]
[399785317,1766675447013,-150.0,0.0001604,2]
[399785318,1766675447022,-296.20815383,0.00016043,2]
[399785319,1766675447033,-277.27144016,0.00016043,2]
[399785320,1766675447043,-159.81844232,0.00016043,2]
[399785321,1766675447055,-206.63382846,0.00016043,2]
[399785322,1766675447065,-399.59949094,0.00016043,2]
[399785323,1766675447075,-192.8242755,0.00016043,2]
[399785324,1766675447085,-150.0,0.00016052,2]
[399785325,1766675447096,-296.20815383,0.0001606,2]
[399785326,1766675447106,-277.27144016,0.0001606,2]
[399785327,1766675447118,-159.81844232,0.0001606,2]
[399785328,1766675447128,-206.63382846,0.0001606,2]
[399785329,1766675447138,-399.59949094,0.0001606,2]
[399785330,1766675447148,-192.8242755,0.0001606,2]
[399785331,1766675447158,-150.0,0.00016062,2]
[399785332,1766675447169,-150.0,0.00016072,2]
[399785333,1766675447180,-150.0,0.00016072,2]
[399785334,1766675447190,-296.20815383,0.00016077,2]
[399785335,1766675447201,-277.27144016,0.00016077,2]
[399785336,1766675447211,-159.81844232,0.00016077,2]
[399785337,1766675447223,-206.63382846,0.00016077,2]
[399785338,1766675447233,-399.59949094,0.00016077,2]
[399785339,1766675447243,-192.8242755,0.00016077,2]
[399785340,1766675447258,-150.0,0.00016083,2]
[399785341,1766675447269,-150.0,0.00016087,2]
[399785342,1766675447279,-296.20815383,0.00016094,2]
[399785343,1766675447290,-277.27144016,0.00016094,2]
[399785344,1766675447300,-159.81844232,0.00016094,2]
[399785345,1766675447310,-206.63382846,0.00016094,2]
[399785346,1766675447321,-399.59949094,0.00016094,2]
[399785347,1766675447332,-192.8242755,0.00016094,2]
[399785348,1766675447343,-150.0,0.00016095,2]
[399785349,1766675447353,-150.0,0.00016104,2]
[399785350,1766675447363,-150.0,0.00016105,2]
[399785351,1766675447374,-296.20815383,0.00016111,2]
[399785352,1766675447384,-277.27144016,0.00016111,2]
[399785353,1766675447395,-159.81844232,0.00016111,2]
[399785354,1766675447407,-206.63382846,0.00016111,2]
[399785355,1766675447416,-399.59949094,0.00016111,2]
[399785356,1766675447427,-192.8242755,0.00016111,2]
[399785357,1766675447438,-5528.98,0.00016116,2]
[399785358,1766675447448,-150.0,0.00016126,2]
[399785359,1766675447458,-296.20815383,0.00016128,2]
[399785360,1766675447469,-277.27144016,0.00016128,2]
[399785361,1766675447479,-159.81844232,0.00016128,2]
[399785362,1766675447490,-206.63382846,0.00016128,2]
[399785363,1766675447500,-399.59949094,0.00016128,2]
[399785364,1766675447511,-192.8242755,0.00016128,2]
[399785365,1766675447521,-150.0,0.00016137,2]
[399785366,1766675447531,-150.0,0.00016137,2]
[399785367,1766675447541,-150.0,0.00016137,2]
[399785368,1766675447551,-150.0,0.00016137,2]
[399785369,1766675447561,-150.0,0.00016137,2]
[399785370,1766675447571,-150.0,0.00016137,2]
[399785371,1766675447581,-150.0,0.00016137,2]
[399785372,1766675447592,-150.0,0.00016137,2]
[399785373,1766675447602,-296.20815383,0.00016146,2]
[399785374,1766675447613,-277.27144016,0.00016146,2]
[399785375,1766675447623,-159.81844232,0.00016146,2]
[399785376,1766675447633,-206.63382846,0.00016146,2]
[399785377,1766675447643,-399.59949094,0.00016146,2]
[399785378,1766675447653,-192.8242755,0.00016146,2]
[399785379,1766675447663,-150.0,0.00016148,2]
[399785380,1766675447673,-296.20815383,0.00016163,2]
[399785381,1766675447683,-277.27144016,0.00016163,2]
[399785382,1766675447694,-159.81844232,0.00016163,2]
[399785383,1766675447705,-206.63382846,0.00016163,2]
[399785384,1766675447719,-399.59949094,0.00016163,2]
[399785385,1766675447729,-192.8242755,0.00016163,2]
[399785386,1766675447739,-5315.72073937,0.00016166,2]
[399785387,1766675447750,-8120.72127121,0.00016166,2]
[399785388,1766675447760,-150.0,0.00016169,2]
[399785389,1766675447772,-150.0,0.0001617,2]
[399785390,1766675447782,-41325.20904142,0.00016177,2]
[399785391,1766675447793,-583.07830005,0.00016177,2]
[399785392,1766675447803,-150.0,0.00016179,2]
[399785393,1766675447814,-296.20815383,0.0001618,2]
[399785394,1766675447825,-277.27144016,0.0001618,2]
[399785395,1766675447835,-159.81844232,0.0001618,2]
[399785396,1766675447846,-206.63382846,0.0001618,2]
[399785397,1766675447856,-399.59949094,0.0001618,2]
[399785398,1766675447866,-192.8242755,0.0001618,2]
[399785399,1766675447876,-500.0,0.00016183,2]
[399785400,1766675447886,-500.0,0.00016183,2]
[399785401,1766675447896,-349.16265713,0.00016183,2]
[399785402,1766675447906,-500.0,0.00016183,2]
[399785403,1766675447916,-500.0,0.00016183,2]
[399785404,1766675447926,-500.0,0.00016183,2]
[399785405,1766675447936,-500.0,0.00016183,2]
[399785406,1766675447947,-500.0,0.00016183,2]
[399785407,1766675447957,-648.46173605,0.00016183,2]
[399785408,1766675447967,-500.0,0.00016183,2]
[399785409,1766675447977,-515.54072242,0.00016183,2]
[399785410,1766675447987,-500.0,0.00016183,2]
[399785411,1766675447997,-500.0,0.00016183,2]
[399785412,1766675448009,-500.0,0.00016183,2]
[399785413,1766675448019,-500.0,0.00016183,2]
[399785414,1766675448029,-500.0,0.00016183,2]
[399785415,1766675448038,-500.0,0.00016183,2]
[399785416,1766675448048,-160.176,0.00016183,2]
[399785417,1766675448058,-500.0,0.00016183,2]
[399785418,1766675448067,-500.0,0.00016183,2]
[399785419,1766675448077,-500.0,0.00016183,2]
[399785420,1766675448087,-500.0,0.00016183,2]
[399785421,1766675448096,-500.0,0.00016183,2]
[399785422,1766675448107,-500.0,0.00016183,2]
[399785423,1766675448117,-164.92711325,0.00016183,2]
[399785424,1766675448127,-500.0,0.00016183,2]
[399785425,1766675448137,-500.66742167,0.00016183,2]
[399785426,1766675448147,-500.0,0.00016183,2]
[399785427,1766675448157,-500.0,0.00016183,2]
[399785428,1766675448168,-500.0,0.00016183,2]
[399785429,1766675448178,-500.0,0.00016183,2]
[399785430,1766675448187,-500.0,0.00016183,2]
[399785431,1766675448198,-500.0,0.00016183,2]
[399785432,1766675448208,-168.21782,0.00016183,2]
[399785433,1766675448219,-500.0,0.00016183,2]
[399785434,1766675448232,-500.0,0.00016183,2]
[399785435,1766675448243,-500.0,0.00016183,2]
[399785436,1766675448253,-150.0,0.00016187,2]
[399785437,1766675448263,-150.0,0.00016191,2]
[399785438,1766675448272,-150.0,0.00016192,2]
[399785439,1766675448283,-296.20815383,0.00016197,2]
[399785440,1766675448294,-277.27144016,0.00016197,2]
[399785441,1766675448304,-159.81844232,0.00016197,2]
[399785442,1766675448315,-206.63382846,0.00016197,2]
[399785443,1766675448326,-399.59949094,0.00016197,2]
[399785444,1766675448336,-192.8242755,0.00016197,2]
[399785445,1766675448346,-1000.0,0.000162,2]
[399785446,1766675448356,-150.0,0.00016202,2]
[399785447,1766675448366,-150.0,0.00016202,2]
[399785448,1766675448376,-150.0,0.00016212,2]
[399785449,1766675448387,-296.20815383,0.00016214,2]
[399785450,1766675448397,-277.27144016,0.00016214,2]
[399785451,1766675448408,-159.81844232,0.00016214,2]
[399785452,1766675448418,-206.63382846,0.00016214,2]
[399785453,1766675448428,-399.59949094,0.00016214,2]
[399785454,1766675448438,-192.8242755,0.00016214,2]
[399785455,1766675448448,-2351.0,0.00016216,2]
[399785456,1766675448458,-150.0,0.00016222,2]
[399785457,1766675448469,-296.20815383,0.00016231,2]
[399785458,1766675448479,-277.27144016,0.00016231,2]
[399785459,1766675448489,-159.81844232,0.00016231,2]
[399785460,1766675448499,-206.63382846,0.00016231,2]
[399785461,1766675448509,-399.59949094,0.00016231,2]
[399785462,1766675448519,-192.8242755,0.00016231,2]
[399785463,1766675448530,-150.0,0.00016234,2]
[399785464,1766675448541,-150.0,0.00016235,2]
[399785465,1766675448550,-150.0,0.00016237,2]
[399785466,1766675448560,-296.20815383,0.00016249,2]
[399785467,1766675448570,-277.27144016,0.00016249,2]
[399785468,1766675448580,-159.81844232,0.00016249,2]
[399785469,1766675448590,-206.63382846,0.00016249,2]
[399785470,1766675448600,-399.59949094,0.00016249,2]
[399785471,1766675448611,-192.8242755,0.00016249,2]
[399785472,1766675448621,-150.0,0.00016255,2]
[399785473,1766675448631,-150.0,0.00016264,2]
[399785474,1766675448641,-296.20815383,0.00016266,2]
[399785475,1766675448651,-277.27144016,0.00016266,2]
[399785476,1766675448662,-159.81844232,0.00016266,2]
[399785477,1766675448731,-206.63382846,0.00016266,2]
[399785478,1766675448742,-399.59949094,0.00016266,2]
[399785479,1766675448753,-192.8242755,0.00016266,2]
[399785480,1766675448763,-150.0,0.00016268,2]
[399785481,1766675448774,-150.0,0.00016268,2]
[399785482,1766675448783,-150.0,0.00016277,2]
[399785483,1766675448793,-150.0,0.00016279,2]
[399785484,1766675448803,-296.20815383,0.00016283,2]
[399785485,1766675448813,-277.27144016,0.00016283,2]
[399785486,1766675448822,-159.81844232,0.00016283,2]
[399785487,1766675448832,-206.63382846,0.00016283,2]
[399785488,1766675448841,-399.59949094,0.00016283,2]
[399785489,1766675448851,-192.8242755,0.00016283,2]
[399785490,1766675448860,-150.0,0.00016287,2]
[399785491,1766675448870,-150.0,0.00016298,2]
[399785492,1766675448880,-296.20815383,0.000163,2]
[399785493,1766675448890,-277.27144016,0.000163,2]
[399785494,1766675448899,-159.81844232,0.000163,2]
[399785495,1766675448909,-206.63382846,0.000163,2]
[399785496,1766675448919,-399.59949094,0.000163,2]
[399785497,1766675448929,-192.8242755,0.000163,2]
[399785498,1766675448940,-150.0,0.000163,2]
[399785499,1766675448950,-150.0,0.00016307,2]
[399785500,1766675448960,-296.20815383,0.00016317,2]
[399785501,1766675448970,-277.27144016,0.00016317,2]
[399785502,1766675448980,-159.81844232,0.00016317,2]
[399785503,1766675448989,-206.63382846,0.00016317,2]
[399785504,1766675448999,-399.59949094,0.00016317,2]
[399785505,1766675449009,-192.8242755,0.00016317,2]
[399785506,1766675449019,-150.0,0.0001632,2]
[399785507,1766675449028,-150.0,0.00016333,2]
[399785508,1766675449039,-150.0,0.00016333,2]
[399785509,1766675449049,-296.20815383,0.00016334,2]
[399785510,1766675449059,-277.27144016,0.00016334,2]
[399785511,1766675449068,-159.81844232,0.00016334,2]
[399785512,1766675449078,-206.63382846,0.00016334,2]
[399785513,1766675449087,-399.59949094,0.00016334,2]
[399785514,1766675449098,-192.8242755,0.00016334,2]
[399785515,1766675449108,-150.0,0.00016337,2]
[399785516,1766675449118,-150.0,0.00016341,2]
[399785517,1766675449127,-150.0,0.00016349,2]
[399785518,1766675449137,-150.0,0.00016349,2]
[399785519,1766675449147,-214.20136534,0.0001635,2]
[399785520,1766675449158,-296.20815383,0.00016351,2]
[399785521,1766675449168,-277.27144016,0.00016351,2]
[399785522,1766675449177,-159.81844232,0.00016351,2]
[399785523,1766675449188,-206.63382846,0.00016351,2]
[399785524,1766675449199,-399.59949094,0.00016351,2]
[399785525,1766675449209,-192.8242755,0.00016351,2]
[399785526,1766675449219,-150.0,0.00016363,2]
[399785527,1766675449229,-150.0,0.00016366,2]
[399785528,1766675449239,-296.20815383,0.00016369,2]
[399785529,1766675449250,-277.27144016,0.00016369,2]
[399785530,1766675449260,-159.81844232,0.00016369,2]
[399785531,1766675449269,-206.63382846,0.00016369,2]
[399785532,1766675449279,-399.59949094,0.00016369,2]
[399785533,1766675449289,-192.8242755,0.00016369,2]
[399785534,1766675449299,-215.0738,0.00016372,2]
[399785535,1766675449310,-150.0,0.00016384,2]
[399785536,1766675449320,-296.20815383,0.00016386,2]
[399785537,1766675449330,-277.27144016,0.00016386,2]
[399785538,1766675449340,-159.81844232,0.00016386,2]
[399785539,1766675449350,-206.63382846,0.00016386,2]
[399785540,1766675449360,-399.59949094,0.00016386,2]
[399785541,1766675449370,-192.8242755,0.00016386,2]
[399785542,1766675449380,-150.0,0.00016387,2]
[399785543,1766675449390,-150.0,0.00016392,2]
[399785544,1766675449400,-150.0,0.00016398,2]
[399785545,1766675449411,-150.0,0.00016398,2]
[399785546,1766675449420,-228.0,0.000164,2]
[399785547,1766675449430,-319.0,0.000164,2]
[399785548,1766675449441,-182.0,0.000164,2]
[399785549,1766675449450,-184.24951816,0.000164,2]
[399785550,1766675449460,-296.20815383,0.00016403,2]
[399785551,1766675449469,-277.27144016,0.00016403,2]
[399785552,1766675449479,-159.81844232,0.00016403,2]
[399785553,1766675449489,-206.63382846,0.00016403,2]
[399785554,1766675449499,-399.59949094,0.00016403,2]
[399785555,1766675449509,-192.8242755,0.00016403,2]
[399785556,1766675449519,-150.0,0.00016406,2]